[Event "Late-Titled-Tuesday-Blitz-June-25-2024"]
[Site "Chess.com"]
[Date "2024.06.25"]
[Round "10"]
[White "Cheer_Down"]
[Black "kiwibobo"]
[Result "1-0"]
[WhiteElo "2475"]
[BlackElo "2340"]
[TimeControl "180+1"]
[EndTime "15:55:08 PDT"]
[Termination "Cheer_Down won by checkmate"]

1. e4 {[%clk 0:03:00.9]} 1... e5 {[%clk 0:02:59.6]} 2. Nf3 {[%clk 0:03:00.5]}
2... Nc6 {[%clk 0:03:00]} 3. Bc4 {[%clk 0:02:59.9]} 3... Nf6 {[%clk 0:03:00.1]}
4. d3 {[%clk 0:02:59.6]} 4... Bc5 {[%clk 0:02:59.1]} 5. c3 {[%clk 0:02:59.1]}
5... a6 {[%clk 0:02:59.6]} 6. O-O {[%clk 0:02:56.7]} 6... d6 {[%clk 0:03:00.4]}
7. a4 {[%clk 0:02:56.1]} 7... h6 {[%clk 0:03:00.9]} 8. Re1 {[%clk 0:02:54.5]}
8... O-O {[%clk 0:03:00.4]} 9. h3 {[%clk 0:02:51]} 9... Ba7 {[%clk 0:02:54.4]}
10. Nbd2 {[%clk 0:02:45.4]} 10... d5 {[%clk 0:02:40.2]} 11. exd5 {[%clk
0:02:25.6]} 11... Nxd5 {[%clk 0:02:41.1]} 12. Nxe5 {[%clk 0:02:15.2]} 12... Nxe5
{[%clk 0:02:35.7]} 13. Rxe5 {[%clk 0:02:13.3]} 13... Be6 {[%clk 0:02:22.1]} 14.
Nf3 {[%clk 0:02:06.6]} 14... c6 {[%clk 0:02:18.1]} 15. Re1 {[%clk 0:01:48.2]}
15... b5 {[%clk 0:02:15.8]} 16. Bb3 {[%clk 0:01:44.5]} 16... Qf6 {[%clk
0:02:10.7]} 17. d4 {[%clk 0:01:39]} 17... Rfe8 {[%clk 0:02:04.7]} 18. Ne5 {[%clk
0:01:31.6]} 18... Bf5 {[%clk 0:01:41]} 19. axb5 {[%clk 0:01:25.2]} 19... axb5
{[%clk 0:01:40.1]} 20. Qf3 {[%clk 0:01:16.2]} 20... Bh7 {[%clk 0:01:26.6]} 21.
Bd2 {[%clk 0:01:04.3]} 21... Qxf3 {[%clk 0:00:57.9]} 22. Nxf3 {[%clk 0:01:04.2]}
22... f6 {[%clk 0:00:52]} 23. Rxe8+ {[%clk 0:01:02.8]} 23... Rxe8 {[%clk
0:00:52.8]} 24. Rxa7 {[%clk 0:01:02.2]} 24... Be4 {[%clk 0:00:51.5]} 25. Be3
{[%clk 0:00:53.5]} 25... Kh7 {[%clk 0:00:49.5]} 26. Nd2 {[%clk 0:00:49.9]} 26...
Bg6 {[%clk 0:00:45.1]} 27. Bxd5 {[%clk 0:00:48.3]} 27... cxd5 {[%clk 0:00:44.1]}
28. Nb3 {[%clk 0:00:47.2]} 28... Bd3 {[%clk 0:00:40.4]} 29. Nc5 {[%clk
0:00:46.5]} 29... Bc4 {[%clk 0:00:39.6]} 30. b3 {[%clk 0:00:44.2]} 30... Be2
{[%clk 0:00:39]} 31. Nd7 {[%clk 0:00:42.8]} 31... Kg6 {[%clk 0:00:35.6]} 32. Nb6
{[%clk 0:00:41.3]} 32... Re6 {[%clk 0:00:34]} 33. Nxd5 {[%clk 0:00:40.6]} 33...
Kh7 {[%clk 0:00:31.1]} 34. Nf4 {[%clk 0:00:40.2]} 34... Bd1 {[%clk 0:00:30.3]}
35. Nxe6 {[%clk 0:00:39.2]} 35... Bxb3 {[%clk 0:00:30.1]} 36. Nxg7 {[%clk
0:00:38.4]} 36... Kg6 {[%clk 0:00:28.2]} 37. g4 {[%clk 0:00:38.5]} 37... Bc4
{[%clk 0:00:24]} 38. f4 {[%clk 0:00:37.8]} 38... Bd3 {[%clk 0:00:17.1]} 39. f5+
{[%clk 0:00:38]} 39... Kh7 {[%clk 0:00:17.2]} 40. Nh5+ {[%clk 0:00:35.3]} 40...
Kg8 {[%clk 0:00:18.1]} 41. Nxf6+ {[%clk 0:00:35.1]} 41... Kh8 {[%clk 0:00:17.4]}
42. Rh7# {[%clk 0:00:34.3]} 1-0

[Event "Late-Titled-Tuesday-Blitz-June-25-2024"]
[Site "Chess.com"]
[Date "2024.06.25"]
[Round "10"]
[White "jk13"]
[Black "xasid81"]
[Result "1/2-1/2"]
[WhiteElo "2705"]
[BlackElo "2580"]
[TimeControl "180+1"]
[EndTime "15:55:10 PDT"]
[Termination "Game drawn by repetition"]

1. e4 {[%clk 0:03:00.9]} 1... d5 {[%clk 0:02:59.8]} 2. exd5 {[%clk 0:03:00.8]}
2... Nf6 {[%clk 0:03:00.4]} 3. d4 {[%clk 0:03:00.5]} 3... Bg4 {[%clk 0:03:00]}
4. Be2 {[%clk 0:02:59.2]} 4... Bxe2 {[%clk 0:02:57.4]} 5. Qxe2 {[%clk
0:03:00.1]} 5... Qxd5 {[%clk 0:02:57.3]} 6. Nf3 {[%clk 0:03:00.5]} 6... Nc6
{[%clk 0:02:57.3]} 7. c4 {[%clk 0:02:46.9]} 7... Qe4 {[%clk 0:02:51.9]} 8. Be3
{[%clk 0:02:45.9]} 8... e6 {[%clk 0:02:51.9]} 9. O-O {[%clk 0:02:45]} 9... Bd6
{[%clk 0:02:45]} 10. Nc3 {[%clk 0:02:40.9]} 10... Qg6 {[%clk 0:02:44]} 11. d5
{[%clk 0:02:34.8]} 11... exd5 {[%clk 0:02:40.3]} 12. cxd5 {[%clk 0:01:55.6]}
12... Ne7 {[%clk 0:02:34.7]} 13. Qb5+ {[%clk 0:01:51.9]} 13... Nd7 {[%clk
0:02:28.8]} 14. Qxb7 {[%clk 0:01:45.5]} 14... O-O {[%clk 0:02:28.4]} 15. Qb5
{[%clk 0:01:36.5]} 15... Ne5 {[%clk 0:02:19.2]} 16. Nxe5 {[%clk 0:01:32.1]}
16... Bxe5 {[%clk 0:02:20.1]} 17. Qc4 {[%clk 0:01:28.1]} 17... Qd6 {[%clk
0:02:12.3]} 18. h3 {[%clk 0:00:50.7]} 18... Bxc3 {[%clk 0:02:11]} 19. bxc3
{[%clk 0:00:45.4]} 19... Qxd5 {[%clk 0:02:09.2]} 20. Qxc7 {[%clk 0:00:43.9]}
20... Nf5 {[%clk 0:02:05.4]} 21. Qc5 {[%clk 0:00:35.5]} 21... Qxc5 {[%clk
0:01:59.8]} 22. Bxc5 {[%clk 0:00:35.6]} 22... Rfc8 {[%clk 0:02:00.7]} 23. Bd4
{[%clk 0:00:25.6]} 23... Rc4 {[%clk 0:01:43.5]} 24. Rfd1 {[%clk 0:00:26.1]}
24... Nxd4 {[%clk 0:01:36.6]} 25. cxd4 {[%clk 0:00:25.8]} 25... Rd8 {[%clk
0:01:36.8]} 26. Rab1 {[%clk 0:00:24.5]} 26... g6 {[%clk 0:01:33.3]} 27. Rb7
{[%clk 0:00:23.2]} 27... a5 {[%clk 0:01:25.2]} 28. d5 {[%clk 0:00:21.5]} 28...
Rd6 {[%clk 0:01:23.9]} 29. Rb5 {[%clk 0:00:20.6]} 29... a4 {[%clk 0:01:18.3]}
30. Rd2 {[%clk 0:00:21.1]} 30... Kg7 {[%clk 0:01:15.6]} 31. g3 {[%clk
0:00:21.6]} 31... Kf6 {[%clk 0:01:14.9]} 32. Kg2 {[%clk 0:00:21.9]} 32... Rc3
{[%clk 0:01:13]} 33. h4 {[%clk 0:00:22.1]} 33... h5 {[%clk 0:01:12.9]} 34. Ra5
{[%clk 0:00:21.8]} 34... a3 {[%clk 0:01:11.3]} 35. Rb5 {[%clk 0:00:22.2]} 35...
Ke5 {[%clk 0:01:09.2]} 36. Ra5 {[%clk 0:00:22.2]} 36... Kf6 {[%clk 0:01:04.6]}
37. Kf1 {[%clk 0:00:22.1]} 37... Rd8 {[%clk 0:00:49.9]} 38. d6 {[%clk
0:00:19.9]} 38... Rd7 {[%clk 0:00:48.9]} 39. Ke2 {[%clk 0:00:19.1]} 39... Ke6
{[%clk 0:00:46.7]} 40. Ra6 {[%clk 0:00:19.4]} 40... Ke5 {[%clk 0:00:46.3]} 41.
Ra5+ {[%clk 0:00:17.3]} 41... Ke6 {[%clk 0:00:46.2]} 42. Ra6 {[%clk 0:00:18]}
42... Ke5 {[%clk 0:00:41.3]} 43. Rb6 {[%clk 0:00:17.9]} 43... Ke6 {[%clk
0:00:37.9]} 44. Rd3 {[%clk 0:00:16]} 44... Rc2+ {[%clk 0:00:37.1]} 45. Rd2
{[%clk 0:00:16.6]} 45... Rc3 {[%clk 0:00:35.9]} 46. Rd4 {[%clk 0:00:14.9]} 46...
Rc2+ {[%clk 0:00:35.7]} 47. Rd2 {[%clk 0:00:15.4]} 47... Rc3 {[%clk 0:00:35.7]}
1/2-1/2

[Event "Late-Titled-Tuesday-Blitz-June-25-2024"]
[Site "Chess.com"]
[Date "2024.06.25"]
[Round "10"]
[White "Zq1"]
[Black "Snowball-03"]
[Result "1-0"]
[WhiteElo "2503"]
[BlackElo "2608"]
[TimeControl "180+1"]
[EndTime "15:55:15 PDT"]
[Termination "Zq1 won by resignation"]

1. d4 {[%clk 0:03:00.9]} 1... Nf6 {[%clk 0:02:58.5]} 2. c4 {[%clk 0:02:57.7]}
2... g6 {[%clk 0:02:57]} 3. Nc3 {[%clk 0:02:56.8]} 3... Bg7 {[%clk 0:02:57.3]}
4. e4 {[%clk 0:02:56.3]} 4... d6 {[%clk 0:02:57.9]} 5. Nf3 {[%clk 0:02:56.3]}
5... O-O {[%clk 0:02:58]} 6. Be2 {[%clk 0:02:56.3]} 6... e5 {[%clk 0:02:57.8]}
7. O-O {[%clk 0:02:55.9]} 7... exd4 {[%clk 0:02:57.8]} 8. Nxd4 {[%clk
0:02:55.9]} 8... Re8 {[%clk 0:02:58.2]} 9. f3 {[%clk 0:02:55.9]} 9... c6 {[%clk
0:02:58.1]} 10. Kh1 {[%clk 0:02:54.2]} 10... d5 {[%clk 0:02:40.7]} 11. exd5
{[%clk 0:02:52.5]} 11... cxd5 {[%clk 0:02:40.2]} 12. c5 {[%clk 0:02:52.7]} 12...
Nc6 {[%clk 0:02:34.8]} 13. Bg5 {[%clk 0:02:46.2]} 13... h6 {[%clk 0:02:28.4]}
14. Bh4 {[%clk 0:02:45.8]} 14... g5 {[%clk 0:02:07.1]} 15. Bf2 {[%clk
0:02:41.6]} 15... a6 {[%clk 0:02:00.9]} 16. Qd2 {[%clk 0:02:24.1]} 16... Bf8
{[%clk 0:01:53.6]} 17. Nb3 {[%clk 0:02:21.2]} 17... Bf5 {[%clk 0:01:39.4]} 18.
Rad1 {[%clk 0:02:14.9]} 18... Bg7 {[%clk 0:01:28.7]} 19. Nd4 {[%clk 0:02:08.5]}
19... Bg6 {[%clk 0:01:28.7]} 20. Nxc6 {[%clk 0:02:03.3]} 20... bxc6 {[%clk
0:01:28.3]} 21. Bd4 {[%clk 0:02:03.7]} 21... Rb8 {[%clk 0:01:26.9]} 22. Na4
{[%clk 0:01:39.6]} 22... Nh5 {[%clk 0:01:10.1]} 23. Bxg7 {[%clk 0:01:33.2]}
23... Nxg7 {[%clk 0:01:11]} 24. b3 {[%clk 0:01:24.9]} 24... Nf5 {[%clk
0:01:07.9]} 25. Rfe1 {[%clk 0:01:07.7]} 25... a5 {[%clk 0:00:36.1]} 26. Bd3
{[%clk 0:01:07.4]} 26... Rb4 {[%clk 0:00:31.1]} 27. Rxe8+ {[%clk 0:00:56.5]}
27... Qxe8 {[%clk 0:00:32]} 28. Re1 {[%clk 0:00:56.3]} 28... Qd8 {[%clk
0:00:29.8]} 29. Qc3 {[%clk 0:00:36.2]} 29... d4 {[%clk 0:00:20.4]} 30. Qd2
{[%clk 0:00:36]} 30... Ne3 {[%clk 0:00:20.3]} 31. Bxg6 {[%clk 0:00:35]} 31...
fxg6 {[%clk 0:00:20.5]} 32. Qd3 {[%clk 0:00:35]} 32... Qf6 {[%clk 0:00:20.1]}
33. Nb6 {[%clk 0:00:30.6]} 33... g4 {[%clk 0:00:20.3]} 34. Qe4 {[%clk
0:00:20.2]} 34... gxf3 {[%clk 0:00:20.1]} 35. gxf3 {[%clk 0:00:19.2]} 35... Nf5
{[%clk 0:00:19.2]} 36. Nd7 {[%clk 0:00:16.4]} 36... Qf7 {[%clk 0:00:19.2]} 37.
Ne5 {[%clk 0:00:14.8]} 37... Qd5 {[%clk 0:00:19.3]} 38. Nd3 {[%clk 0:00:12.7]}
38... Qxe4 {[%clk 0:00:19.4]} 39. fxe4 {[%clk 0:00:11.7]} 39... Rb7 {[%clk
0:00:20.3]} 40. exf5 {[%clk 0:00:11.8]} 1-0

[Event "Late-Titled-Tuesday-Blitz-June-25-2024"]
[Site "Chess.com"]
[Date "2024.06.25"]
[Round "10"]
[White "shirovin"]
[Black "King_Deded4d5"]
[Result "1/2-1/2"]
[WhiteElo "2107"]
[BlackElo "2444"]
[TimeControl "180+1"]
[EndTime "15:55:15 PDT"]
[Termination "Game drawn by repetition"]

1. e4 {[%clk 0:03:00.9]} 1... c5 {[%clk 0:02:58.9]} 2. Nf3 {[%clk 0:03:00.2]}
2... e6 {[%clk 0:02:59.1]} 3. d4 {[%clk 0:02:59.8]} 3... cxd4 {[%clk 0:03:00]}
4. Nxd4 {[%clk 0:03:00.1]} 4... a6 {[%clk 0:03:00.9]} 5. Bd3 {[%clk 0:02:59.7]}
5... Bc5 {[%clk 0:03:00.2]} 6. Nb3 {[%clk 0:02:55.4]} 6... Ba7 {[%clk
0:03:00.3]} 7. Qe2 {[%clk 0:02:55.5]} 7... Ne7 {[%clk 0:02:49.3]} 8. Be3 {[%clk
0:02:54.5]} 8... Nbc6 {[%clk 0:02:42.2]} 9. Bxa7 {[%clk 0:02:49.6]} 9... Rxa7
{[%clk 0:02:34.8]} 10. Nc3 {[%clk 0:02:50]} 10... b5 {[%clk 0:02:34.2]} 11. Qe3
{[%clk 0:02:49.1]} 11... Rc7 {[%clk 0:02:32.2]} 12. e5 {[%clk 0:02:42.2]} 12...
d5 {[%clk 0:02:06.5]} 13. exd6 {[%clk 0:02:27]} 13... Qxd6 {[%clk 0:02:05.7]}
14. O-O-O {[%clk 0:02:25.7]} 14... Qe5 {[%clk 0:01:56]} 15. Qh3 {[%clk
0:02:04.1]} 15... Nb4 {[%clk 0:01:22.8]} 16. Kb1 {[%clk 0:01:49.6]} 16... Ned5
{[%clk 0:01:13]} 17. Nxd5 {[%clk 0:01:42.1]} 17... exd5 {[%clk 0:00:54.8]} 18.
Qh4 {[%clk 0:01:32.9]} 18... Nxd3 {[%clk 0:00:50.8]} 19. cxd3 {[%clk 0:01:26.6]}
19... O-O {[%clk 0:00:48.7]} 20. d4 {[%clk 0:01:25.8]} 20... Bf5+ {[%clk
0:00:45.3]} 21. Ka1 {[%clk 0:01:24.3]} 21... Qd6 {[%clk 0:00:41.9]} 22. Nc5
{[%clk 0:01:20.7]} 22... a5 {[%clk 0:00:37.3]} 23. Rhe1 {[%clk 0:01:17.8]} 23...
Bg6 {[%clk 0:00:29.9]} 24. f4 {[%clk 0:01:10.4]} 24... h6 {[%clk 0:00:22.1]} 25.
Re5 {[%clk 0:01:07.8]} 25... b4 {[%clk 0:00:18.8]} 26. g4 {[%clk 0:00:57]} 26...
f6 {[%clk 0:00:14.1]} 27. Ree1 {[%clk 0:00:48.5]} 27... Bf7 {[%clk 0:00:13.4]}
28. f5 {[%clk 0:00:38.8]} 28... a4 {[%clk 0:00:11.9]} 29. Ne6 {[%clk 0:00:38.1]}
29... Bxe6 {[%clk 0:00:10.5]} 30. Rxe6 {[%clk 0:00:37.7]} 30... Qf4 {[%clk
0:00:09.4]} 31. Qe1 {[%clk 0:00:31.6]} 31... Rfc8 {[%clk 0:00:08.9]} 32. Re8+
{[%clk 0:00:25.9]} 32... Rxe8 {[%clk 0:00:06.9]} 33. Qxe8+ {[%clk 0:00:24.7]}
33... Kh7 {[%clk 0:00:07.8]} 34. Qg6+ {[%clk 0:00:20.8]} 34... Kg8 {[%clk
0:00:06.4]} 35. Qe8+ {[%clk 0:00:19.6]} 35... Kh7 {[%clk 0:00:06.3]} 36. Qg6+
{[%clk 0:00:20.2]} 36... Kg8 {[%clk 0:00:06.5]} 37. Qe8+ {[%clk 0:00:20.7]}
1/2-1/2

[Event "Late-Titled-Tuesday-Blitz-June-25-2024"]
[Site "Chess.com"]
[Date "2024.06.25"]
[Round "10"]
[White "Hikaru"]
[Black "Raja3401"]
[Result "1-0"]
[WhiteElo "3206"]
[BlackElo "2798"]
[TimeControl "180+1"]
[EndTime "15:55:19 PDT"]
[Termination "Hikaru won on time"]

1. d4 {[%clk 0:03:00.9]} 1... Nf6 {[%clk 0:02:59.9]} 2. Bg5 {[%clk 0:02:59.6]}
2... d5 {[%clk 0:02:59.3]} 3. Nd2 {[%clk 0:02:57.8]} 3... c5 {[%clk 0:02:56.1]}
4. e3 {[%clk 0:02:56]} 4... Nc6 {[%clk 0:02:53.3]} 5. c3 {[%clk 0:02:53.5]} 5...
e5 {[%clk 0:02:46.6]} 6. dxe5 {[%clk 0:02:52]} 6... Nxe5 {[%clk 0:02:47.5]} 7.
Ngf3 {[%clk 0:02:52.5]} 7... Nc6 {[%clk 0:02:46.4]} 8. Bd3 {[%clk 0:02:52.4]}
8... Be7 {[%clk 0:02:44.2]} 9. Qc2 {[%clk 0:02:52.6]} 9... h6 {[%clk 0:02:43.3]}
10. Bh4 {[%clk 0:02:50.5]} 10... O-O {[%clk 0:02:43.1]} 11. O-O-O {[%clk
0:02:50.6]} 11... Qa5 {[%clk 0:02:38.2]} 12. Kb1 {[%clk 0:02:50.2]} 12... b5
{[%clk 0:02:35.5]} 13. Bf5 {[%clk 0:02:47.3]} 13... c4 {[%clk 0:02:28.3]} 14.
Bxc8 {[%clk 0:02:40.6]} 14... Rfxc8 {[%clk 0:02:26.2]} 15. e4 {[%clk 0:02:41]}
15... dxe4 {[%clk 0:01:46.9]} 16. Nxe4 {[%clk 0:02:27.7]} 16... Nxe4 {[%clk
0:01:46.8]} 17. Qxe4 {[%clk 0:02:28.6]} 17... Bxh4 {[%clk 0:01:45.7]} 18. Nxh4
{[%clk 0:02:29]} 18... b4 {[%clk 0:01:42.2]} 19. Rd5 {[%clk 0:02:01.2]} 19...
Qb6 {[%clk 0:01:37.7]} 20. Qe3 {[%clk 0:02:01.3]} 20... Qxe3 {[%clk 0:00:46]}
21. fxe3 {[%clk 0:02:02.2]} 21... bxc3 {[%clk 0:00:43.6]} 22. bxc3 {[%clk
0:02:03.1]} 22... Rab8+ {[%clk 0:00:43.7]} 23. Kc2 {[%clk 0:02:03.3]} 23... Re8
{[%clk 0:00:44.3]} 24. Nf5 {[%clk 0:02:02.1]} 24... Re5 {[%clk 0:00:37.7]} 25.
Rhd1 {[%clk 0:01:49.8]} 25... Kh7 {[%clk 0:00:38]} 26. g3 {[%clk 0:01:36.3]}
26... Rb5 {[%clk 0:00:37.5]} 27. Rxb5 {[%clk 0:01:35.8]} 27... Rxb5 {[%clk
0:00:38.4]} 28. Nd6 {[%clk 0:01:36.5]} 28... Ra5 {[%clk 0:00:38.1]} 29. Kb1
{[%clk 0:01:31.6]} 29... Ne5 {[%clk 0:00:38.6]} 30. Rd4 {[%clk 0:01:32.1]} 30...
Rc5 {[%clk 0:00:33.7]} 31. h3 {[%clk 0:01:28.6]} 31... f6 {[%clk 0:00:34]} 32.
a4 {[%clk 0:01:27.6]} 32... Rc6 {[%clk 0:00:32.6]} 33. Kb2 {[%clk 0:01:25]}
33... Nf3 {[%clk 0:00:32.7]} 34. Rd1 {[%clk 0:01:24.8]} 34... Ne5 {[%clk
0:00:33.1]} 35. Ka3 {[%clk 0:01:25.1]} 35... Rb6 {[%clk 0:00:29.9]} 36. Nb5
{[%clk 0:01:24.4]} 36... a6 {[%clk 0:00:30.1]} 37. Nd4 {[%clk 0:01:25]} 37...
Nd3 {[%clk 0:00:28.5]} 38. a5 {[%clk 0:01:21.3]} 38... Rd6 {[%clk 0:00:25.2]}
39. Rb1 {[%clk 0:01:19.3]} 39... Rd5 {[%clk 0:00:25.6]} 40. Ka4 {[%clk 0:01:20]}
40... Re5 {[%clk 0:00:22.7]} 41. Nc2 {[%clk 0:01:16.9]} 41... Rf5 {[%clk
0:00:09.4]} 42. Rb6 {[%clk 0:01:11.7]} 42... Rf2 {[%clk 0:00:09.9]} 43. Nb4
{[%clk 0:01:09.5]} 43... Nc5+ {[%clk 0:00:06.9]} 44. Ka3 {[%clk 0:01:10]} 44...
Re2 {[%clk 0:00:06.7]} 45. Rc6 {[%clk 0:01:09.9]} 45... Ne4 {[%clk 0:00:07.1]}
46. Nxa6 {[%clk 0:01:07.2]} 46... Rxe3 {[%clk 0:00:07]} 47. Nc7 {[%clk
0:01:06.7]} 47... Nxc3 {[%clk 0:00:06.7]} 48. Kb4 {[%clk 0:01:07.3]} 48... Ne4
{[%clk 0:00:03.2]} 49. a6 {[%clk 0:00:59.5]} 49... Rb3+ {[%clk 0:00:01.6]} 50.
Kxc4 {[%clk 0:01:00.1]} 50... Ra3 {[%clk 0:00:02]} 51. Kb4 {[%clk 0:01:00.8]}
51... Ra1 {[%clk 0:00:02.2]} 52. Nb5 {[%clk 0:00:55.9]} 52... Rb1+ {[%clk
0:00:02]} 53. Ka5 {[%clk 0:00:56.2]} 53... Ra1+ {[%clk 0:00:02.7]} 54. Kb6
{[%clk 0:00:56.7]} 1-0

[Event "Late-Titled-Tuesday-Blitz-June-25-2024"]
[Site "Chess.com"]
[Date "2024.06.25"]
[Round "10"]
[White "Dyadya81"]
[Black "ArmanGhevondyanchess"]
[Result "1-0"]
[WhiteElo "2805"]
[BlackElo "2629"]
[TimeControl "180+1"]
[EndTime "15:55:19 PDT"]
[Termination "Dyadya81 won on time"]

1. e4 {[%clk 0:03:00.9]} 1... c5 {[%clk 0:03:00.2]} 2. Nf3 {[%clk 0:03:00.3]}
2... Nc6 {[%clk 0:03:00.3]} 3. Bb5 {[%clk 0:03:00]} 3... g6 {[%clk 0:03:00.6]}
4. Bxc6 {[%clk 0:03:00.4]} 4... bxc6 {[%clk 0:03:01.2]} 5. d4 {[%clk 0:03:00.3]}
5... cxd4 {[%clk 0:02:55.2]} 6. Qxd4 {[%clk 0:03:01.2]} 6... Nf6 {[%clk
0:02:50.2]} 7. e5 {[%clk 0:03:01.1]} 7... Nd5 {[%clk 0:02:50.6]} 8. O-O {[%clk
0:02:55.1]} 8... Bg7 {[%clk 0:02:50.2]} 9. Qh4 {[%clk 0:02:44.8]} 9... h6 {[%clk
0:02:40.6]} 10. c4 {[%clk 0:02:45.1]} 10... Nb6 {[%clk 0:02:34.9]} 11. Nc3
{[%clk 0:02:38.2]} 11... Ba6 {[%clk 0:02:18.5]} 12. b3 {[%clk 0:02:36.1]} 12...
Qc7 {[%clk 0:02:10.7]} 13. Ba3 {[%clk 0:02:30.1]} 13... g5 {[%clk 0:02:08]} 14.
Qe4 {[%clk 0:02:25.3]} 14... Bb7 {[%clk 0:02:00.2]} 15. Bc5 {[%clk 0:02:11.2]}
15... h5 {[%clk 0:01:11.5]} 16. Rfe1 {[%clk 0:02:01.7]} 16... g4 {[%clk
0:01:11.2]} 17. Nh4 {[%clk 0:02:00.1]} 17... Bf8 {[%clk 0:00:51]} 18. a4 {[%clk
0:01:47.4]} 18... O-O-O {[%clk 0:00:48.1]} 19. a5 {[%clk 0:01:46.5]} 19... d5
{[%clk 0:00:42.7]} 20. exd6 {[%clk 0:01:35.7]} 20... exd6 {[%clk 0:00:40.5]} 21.
axb6 {[%clk 0:01:35.5]} 21... axb6 {[%clk 0:00:41.4]} 22. Bd4 {[%clk 0:01:31.6]}
22... Rh6 {[%clk 0:00:38]} 23. Qf5+ {[%clk 0:01:12.7]} 23... Kb8 {[%clk
0:00:38]} 24. Bf6 {[%clk 0:01:11.8]} 24... Rc8 {[%clk 0:00:33.6]} 25. Re3 {[%clk
0:01:02.8]} 25... d5 {[%clk 0:00:22.7]} 26. Rae1 {[%clk 0:00:52.2]} 26... Bc5
{[%clk 0:00:17.4]} 27. Be5 {[%clk 0:00:51.8]} 27... Bd6 {[%clk 0:00:17.8]} 28.
cxd5 {[%clk 0:00:51.4]} 28... Bxe5 {[%clk 0:00:10.4]} 29. Rxe5 {[%clk
0:00:48.1]} 29... cxd5 {[%clk 0:00:09.7]} 30. Nxd5 {[%clk 0:00:46.8]} 30... Qc1
{[%clk 0:00:04.9]} 31. Ne7 {[%clk 0:00:17.6]} 31... Rc7 {[%clk 0:00:02.5]} 32.
h3 {[%clk 0:00:14.5]} 32... Qc3 {[%clk 0:00:01.6]} 33. Qxf7 {[%clk 0:00:12.9]}
1-0

[Event "Late-Titled-Tuesday-Blitz-June-25-2024"]
[Site "Chess.com"]
[Date "2024.06.25"]
[Round "10"]
[White "bazar-wokzal"]
[Black "lamomiajunior"]
[Result "1-0"]
[WhiteElo "2627"]
[BlackElo "2759"]
[TimeControl "180+1"]
[EndTime "15:55:23 PDT"]
[Termination "bazar-wokzal won by checkmate"]

1. e4 {[%clk 0:03:00.9]} 1... c5 {[%clk 0:02:58.1]} 2. c3 {[%clk 0:03:00.5]}
2... g6 {[%clk 0:02:49.7]} 3. d4 {[%clk 0:03:00]} 3... Bg7 {[%clk 0:02:50.3]} 4.
dxc5 {[%clk 0:02:59.4]} 4... Qc7 {[%clk 0:02:47.6]} 5. Be3 {[%clk 0:02:58.6]}
5... Nf6 {[%clk 0:02:45.3]} 6. Nd2 {[%clk 0:02:54.8]} 6... O-O {[%clk
0:02:44.5]} 7. Bd3 {[%clk 0:02:51.2]} 7... Na6 {[%clk 0:02:41]} 8. b4 {[%clk
0:02:45.9]} 8... b6 {[%clk 0:02:33.8]} 9. Qe2 {[%clk 0:02:37.6]} 9... Nb8 {[%clk
0:02:24.8]} 10. Ngf3 {[%clk 0:02:20.7]} 10... bxc5 {[%clk 0:02:23.2]} 11. bxc5
{[%clk 0:02:12.7]} 11... Nc6 {[%clk 0:02:16.9]} 12. O-O {[%clk 0:02:11.5]} 12...
Ng4 {[%clk 0:02:07.5]} 13. Bd4 {[%clk 0:02:07]} 13... Bxd4 {[%clk 0:02:02.1]}
14. cxd4 {[%clk 0:02:02.7]} 14... Nxd4 {[%clk 0:02:02.5]} 15. Qd1 {[%clk
0:02:01]} 15... Nxf3+ {[%clk 0:01:58.4]} 16. Nxf3 {[%clk 0:02:00.8]} 16... Qxc5
{[%clk 0:01:52.7]} 17. Rc1 {[%clk 0:02:00.1]} 17... Qa5 {[%clk 0:01:48.4]} 18.
Bc4 {[%clk 0:01:55.7]} 18... Bb7 {[%clk 0:01:14.1]} 19. Qxd7 {[%clk 0:01:33.7]}
19... Bxe4 {[%clk 0:01:14.1]} 20. Qxg4 {[%clk 0:01:32.8]} 20... Bf5 {[%clk
0:01:07.7]} 21. Qh4 {[%clk 0:01:30.7]} 21... Kg7 {[%clk 0:01:02.8]} 22. Qxe7
{[%clk 0:01:26.4]} 22... Rae8 {[%clk 0:01:03.1]} 23. Qd6 {[%clk 0:01:23.5]}
23... Be4 {[%clk 0:01:01]} 24. Qd4+ {[%clk 0:01:18.8]} 24... Kg8 {[%clk
0:00:57.5]} 25. Rc3 {[%clk 0:01:01.9]} 25... Rd8 {[%clk 0:00:52.6]} 26. Qe3
{[%clk 0:00:59.2]} 26... Rfe8 {[%clk 0:00:48.9]} 27. Ng5 {[%clk 0:00:22.1]}
27... Kg7 {[%clk 0:00:44.2]} 28. Nxe4 {[%clk 0:00:20.2]} 28... f5 {[%clk
0:00:43.4]} 29. Qc5 {[%clk 0:00:16]} 29... Qa4 {[%clk 0:00:38.5]} 30. Ng5 {[%clk
0:00:12.8]} 30... Rd1 {[%clk 0:00:32.6]} 31. Qc7+ {[%clk 0:00:11.7]} 31... Kh6
{[%clk 0:00:31.8]} 32. Qxh7+ {[%clk 0:00:08]} 32... Kxg5 {[%clk 0:00:32.1]} 33.
Rg3+ {[%clk 0:00:07.9]} 33... Kf4 {[%clk 0:00:32.5]} 34. Qc7+ {[%clk 0:00:05.9]}
34... Re5 {[%clk 0:00:31.4]} 35. Rf3+ {[%clk 0:00:05.5]} 35... Kg5 {[%clk
0:00:26.4]} 36. Qxe5 {[%clk 0:00:05.5]} 36... Qxc4 {[%clk 0:00:17.7]} 37. Rxd1
{[%clk 0:00:04.9]} 37... Qc2 {[%clk 0:00:16.5]} 38. Qe7+ {[%clk 0:00:04.8]}
38... Kh6 {[%clk 0:00:16.7]} 39. Rh3# {[%clk 0:00:05]} 1-0